bitfinex/quotes_SOLUSD_20240826
["timestamp","ask_amount","ask_price","bid_price","bid_amount"]
[1724659998840,1.56052048,160.23,160.16,2.45283563]
[1724659999027,1.56052048,160.23,160.17,2.45283563]
[1724659999746,1.56052048,160.23,160.16,47.45283563]
[1724659999915,1.56052048,160.23,160.17,2.45283563]
[1724660000117,1.56052048,160.23,160.16,2.45283563]
[1724660000318,1.56052048,160.23,160.13,20.0]
[1724660000518,1.56052048,160.23,160.17,2.45312856]
[1724660000725,1.56052048,160.23,160.14,2.45312856]
[1724660000937,1.56052048,160.23,160.15,2.45312856]
[1724660001144,1.56052048,160.23,160.16,2.45312856]
[1724660001351,1.56052048,160.23,160.17,2.45312856]
[1724660001647,1.56052048,160.23,160.14,2.45312856]
[1724660001839,1.56052048,160.23,160.15,2.45312856]
[1724660002041,1.56052048,160.23,160.16,2.45312856]
[1724660002234,1.56052048,160.23,160.17,2.45312856]
[1724660002431,1.56052048,160.23,160.16,2.45270446]
[1724660002665,7.76140014,160.24,160.16,2.45270446]
[1724660003448,7.76140014,160.24,160.17,7.21449777]
[1724660003645,7.76140014,160.24,160.18,3.70192638]
[1724660004250,7.76140014,160.24,160.18,5.96483091]
[1724660004548,7.76140014,160.24,160.16,6.06999873]
[1724660004549,7.76140014,160.24,160.17,3.51226793]
[1724660004724,7.76140014,160.24,160.17,45.0]
[1724660004928,6.2008,160.24,160.18,0.92816429]
[1724660005138,6.2008,160.24,160.18,45.92816429]
[1724660005449,6.2008,160.24,160.19,0.92816172]
[1724660006728,6.2008,160.24,160.18,45.0]
[1724660007037,6.2008,160.24,160.17,45.0]
[1724660007342,6.2008,160.24,160.18,6.07077433]
[1724660007516,6.2008,160.24,160.19,45.0]
[1724660008320,16.5795,160.25,160.2,0.9276766]
[1724660008542,16.5795,160.25,160.2,6.99598774]
[1724660008847,16.5795,160.25,160.21,45.0]
[1724660009147,6.4626,160.28,160.22,6.99328611]
[1724660009355,16.3337,160.29,160.23,45.0]
[1724660009648,16.3337,160.29,160.24,0.9264806]
[1724660010253,16.3337,160.29,160.23,45.0]
[1724660011546,16.3337,160.29,160.24,20.0]
[1724660011753,16.3337,160.29,160.25,45.0]
[1724660012331,21.9997,160.33,160.26,0.92649509]
[1724660012534,21.9997,160.33,160.26,20.92649509]
[1724660012726,15.3792,160.33,160.27,45.0]
[1724660013039,15.3792,160.33,160.28,20.92564102]
[1724660013246,15.3792,160.33,160.29,45.0]
[1724660013424,15.3792,160.33,160.3,0.92558618]
[1724660013946,15.3792,160.33,160.28,20.0]
[1724660014255,1.5594832,160.32,160.25,20.0]
[1724660014432,1.5594832,160.32,160.26,45.0]
[1724660015160,1.5594832,160.32,160.21,9.21644545]
[1724660015346,6.2848,160.31,160.21,8.84107157]
[1724660015551,1.55985258,160.3,160.21,8.84107157]
[1724660015733,6.2848,160.31,160.22,20.0]
[1724660016233,6.2848,160.31,160.23,20.0]
[1724660016660,6.2848,160.31,160.24,45.0]
[1724660016960,6.2848,160.31,160.25,20.0]
[1724660017129,6.2848,160.31,160.25,20.92665191]
[1724660017335,6.2848,160.31,160.25,20.0]
[1724660017545,6.2848,160.31,160.21,20.0]
[1724660017750,6.2848,160.31,160.22,0.92712103]
[1724660019154,6.2848,160.31,160.22,20.92712103]
[1724660020934,1.55994411,160.3,160.22,20.0]
[1724660021241,1.55994451,160.29,160.21,45.0]
[1724660021555,16.6038,160.28,160.21,45.0]
[1724660021764,1.56015065,160.27,160.17,20.0]
[1724660021972,1.56015065,160.27,160.17,26.06922272]
[1724660022559,18.16395084,160.28,160.17,26.06922272]
[1724660022859,18.16395084,160.28,160.18,20.0]
[1724660023240,18.16395084,160.28,160.19,45.0]
[1724660023555,18.16395084,160.28,160.2,20.0]
[1724660023760,16.6038,160.28,160.21,0.92770784]
[1724660027782,16.6038,160.28,160.21,45.92770784]
[1724660027980,16.6038,160.28,160.22,20.0]
[1724660028274,16.6038,160.28,160.23,0.92729825]
[1724660031279,16.6038,160.28,160.22,20.0]
[1724660032081,1.56011849,160.27,160.22,20.0]
[1724660032879,16.6038,160.28,160.22,20.0]
[1724660033089,16.6038,160.28,160.22,20.9274937]
[1724660034686,16.6038,160.28,160.23,0.92708573]
[1724660034869,16.6038,160.28,160.24,0.92659738]
[1724660035055,16.6038,160.28,160.24,20.92659738]
[1724660035256,16.6038,160.28,160.24,20.0]
[1724660036254,16.6038,160.28,160.19,26.07026423]
[1724660036562,16.6038,160.28,160.2,45.0]
[1724660036765,16.6038,160.28,160.21,20.0]
[1724660037254,16.6038,160.28,160.21,26.06963306]
[1724660037877,16.6038,160.28,160.21,20.0]
[1724660038464,16.6038,160.28,160.21,26.06947943]
[1724660038857,16.6038,160.28,160.22,0.9272963]
[1724660039062,16.6038,160.28,160.23,0.92692225]
[1724660039267,16.6038,160.28,160.24,0.92667878]
[1724660039488,16.6038,160.28,160.24,45.92667878]
[1724660039690,16.6038,160.28,160.25,20.0]
[1724660042891,6.2848,160.31,160.25,20.0]
[1724660043292,7.84443111,160.31,160.26,45.0]
[1724660043469,7.84443111,160.31,160.27,20.0]
[1724660043673,7.84443111,160.31,160.25,20.0]
[1724660044299,7.84443111,160.31,160.22,20.0]
[1724660044477,6.2848,160.31,160.23,0.92702519]
[1724660045270,6.2848,160.31,160.23,45.0]
[1724660045599,1.55992387,160.3,160.23,45.0]
[1724660045795,1.5599238,160.29,160.24,20.0]
[1724660046175,1.5599238,160.29,160.19,2.6927689]
[1724660046176,6.2848,160.31,160.2,6.06848534]
[1724660046497,6.2848,160.31,160.21,26.06848534]
[1724660046802,6.2848,160.31,160.22,26.06848534]
[1724660046976,6.2848,160.31,160.23,0.92721227]
[1724660047879,6.2848,160.31,160.23,20.92721227]
[1724660048094,6.2848,160.31,160.22,10.93146772]
[1724660048394,6.2848,160.31,160.23,20.0]
[1724660048598,6.2848,160.31,160.23,26.06948066]
[1724660048777,6.2848,160.31,160.24,0.92706651]
[1724660049790,6.2848,160.31,160.25,1.56148478]
[1724660049990,6.2848,160.31,160.26,1.56148478]
[1724660050192,6.2848,160.31,160.27,1.56148478]
[1724660050388,6.2848,160.31,160.24,0.92706651]
[1724660050591,6.2848,160.31,160.25,1.56148455]
[1724660050879,1.55994273,160.3,160.26,1.56148455]
[1724660051185,1.55994273,160.3,160.27,1.56148455]
[1724660051393,1.55994273,160.3,160.24,20.0]
[1724660051703,1.55994273,160.3,160.25,1.5614611]
[1724660051904,1.55994273,160.3,160.26,1.5614611]
[1724660052106,1.55994273,160.3,160.27,1.5614611]
[1724660052309,1.55994273,160.3,160.25,20.0]
[1724660052511,1.55994273,160.3,160.26,1.56151516]
[1724660052685,1.55994273,160.3,160.27,1.56151516]
[1724660052887,6.2848,160.31,160.23,4.86165825]
[1724660053113,6.2848,160.31,160.24,8.55747582]
[1724660053309,6.2848,160.31,160.25,21.56151708]
[1724660053614,6.2848,160.31,160.26,1.56151708]
[1724660053809,6.2848,160.31,160.25,20.0]
[1724660053810,6.2848,160.31,160.27,1.56151708]
[1724660054113,6.2848,160.31,160.28,1.56151708]
[1724660054427,6.2848,160.31,160.22,20.92706699]
[1724660054588,6.2848,160.31,160.23,1.56148345]
[1724660054789,6.2848,160.31,160.24,1.56148345]
[1724660055010,6.2848,160.31,160.25,1.56148345]
[1724660055301,6.2848,160.31,160.26,1.56148345]
[1724660055604,6.2848,160.31,160.27,1.56148345]
[1724660055787,6.2848,160.31,160.28,1.56148345]
[1724660055990,6.2848,160.31,160.22,28.85062855]
[1724660056210,6.2848,160.31,160.23,1.56149187]
[1724660056406,6.2848,160.31,160.24,2.48855185]
[1724660056611,6.2848,160.31,160.25,1.56149187]
[1724660056914,6.2848,160.31,160.24,0.92705998]
[1724660056915,6.2848,160.31,160.26,1.56149187]
[1724660057106,6.2848,160.31,160.27,1.56149187]
[1724660057297,6.2848,160.31,160.28,1.56149187]
[1724660057499,1.55993191,160.3,160.21,20.0]
[1724660057803,1.55993191,160.3,160.22,46.56149102]
[1724660058006,1.55993191,160.3,160.23,21.56149102]
[1724660058210,1.55993191,160.3,160.24,1.56149102]
[1724660058508,1.55993191,160.3,160.23,20.0]
[1724660058509,1.55993191,160.3,160.25,1.56149102]
[1724660058707,1.55993191,160.3,160.26,1.56149102]
[1724660058911,1.55993191,160.3,160.27,1.56149102]
[1724660059114,1.55993191,160.3,160.28,1.56149102]
[1724660059420,6.2848,160.31,160.29,1.56144495]
[1724660059595,6.2848,160.31,160.23,20.0]
[1724660059794,6.2848,160.31,160.24,1.56144609]
[1724660060002,6.2848,160.31,160.25,2.48843834]
[1724660060201,6.2848,160.31,160.26,1.56144609]
[1724660060496,6.2848,160.31,160.27,1.56144609]
[1724660060712,7.84462341,160.31,160.28,1.56144609]
[1724660060888,7.84462341,160.31,160.29,1.56144609]
[1724660061088,7.84462341,160.31,160.25,20.0]
[1724660061319,7.84462341,160.31,160.26,1.56145751]
[1724660061511,7.84462341,160.31,160.27,1.56145751]
[1724660061704,7.84462341,160.31,160.28,1.56145751]
[1724660061900,7.84462341,160.31,160.29,1.56145751]
[1724660062099,7.84462341,160.31,160.25,20.0]
[1724660062815,7.84462341,160.31,160.26,1.56144552]
[1724660063009,7.84462341,160.31,160.27,1.56144552]
[1724660063314,7.84462341,160.31,160.25,20.0]
[1724660063523,7.84462341,160.31,160.28,1.56145294]
[1724660063706,7.84462341,160.31,160.25,20.0]
[1724660066628,7.84462341,160.31,160.26,1.56144587]
[1724660066999,7.84462341,160.31,160.26,5.07256064]
[1724660068526,7.84462341,160.31,160.26,3.51111477]
[1724660069517,6.2848,160.31,160.26,3.51111477]
[1724660069823,6.2848,160.31,160.25,20.0]
[1724660071022,7.84449504,160.31,160.25,20.0]
[1724660071408,6.2848,160.31,160.25,20.0]
[1724660072134,6.2848,160.31,160.26,3.5092323]
[1724660073130,1.55969596,160.3,160.26,3.5092323]
[1724660073336,16.1463,160.32,160.26,3.5092323]
[1724660074224,16.1463,160.32,160.27,3.5092323]
[1724660074408,1.55981324,160.31,160.25,20.0]
[1724660074936,16.1463,160.32,160.25,20.0]
[1724660074937,16.1463,160.32,160.26,2.44969211]
[1724660075134,16.1463,160.32,160.25,20.92676217]
[1724660075823,16.1463,160.32,160.26,1.56143091]
[1724660076134,1.55981306,160.31,160.26,1.56143091]
[1724660077839,16.1463,160.32,160.27,1.56143091]
[1724660078144,16.1463,160.32,160.25,26.17945298]
[1724660078318,1.55981181,160.31,160.25,26.17945298]
[1724660078649,16.1463,160.32,160.25,26.17945298]
[1724660078945,1.55981186,160.31,160.25,26.17945298]
[1724660079343,16.1463,160.32,160.25,26.17945298]
[1724660079641,1.55981189,160.31,160.25,26.17945298]
[1724660080955,1.55981189,160.31,160.25,20.0]
[1724660081164,1.55981189,160.31,160.24,26.17945298]
[1724660081644,22.3839,160.32,160.24,26.17945298]
[1724660081846,6.238,160.31,160.24,26.17945298]
[1724660082063,16.1463,160.32,160.24,26.17945298]
[1724660082548,22.3838,160.32,160.24,26.17945298]
[1724660084686,16.1463,160.32,160.24,26.17945298]
[1724660084965,1.5599657,160.31,160.24,26.18114792]
[1724660085472,1.5599657,160.31,160.24,20.0]
[1724660085643,6.1945,160.3,160.24,20.0]
[1724660085842,1.56007878,160.29,160.24,20.0]
[1724660086442,1.56007878,160.29,160.23,20.0]
[1724660087257,6.1945,160.3,160.23,27.1085269]
[1724660087450,6.1945,160.3,160.23,26.18114792]
[1724660088168,6.1945,160.3,160.23,20.0]
[1724660088871,6.1945,160.3,160.23,20.92738067]
[1724660089071,6.1945,160.3,160.23,27.10852859]
[1724660089975,6.1945,160.3,160.23,26.18114792]
[1724660091144,6.1945,160.3,160.23,20.0]
[1724660091345,1.56007093,160.29,160.23,20.0]
[1724660092757,1.56007093,160.29,160.23,19.93350352]
[1724660093447,6.1945,160.3,160.24,0.92735767]
[1724660094866,6.1945,160.3,160.23,26.11465144]
[1724660096463,6.1945,160.3,160.24,0.92723498]
[1724660097063,6.1945,160.3,160.24,52.1083829]
[1724660097262,406.4463,160.32,160.25,20.0]
[1724660097647,406.4463,160.32,160.25,26.17888282]
[1724660097874,406.4463,160.32,160.26,0.92664786]
[1724660098654,16.1463,160.32,160.26,0.92664786]
[1724660100857,16.1463,160.32,160.25,26.17888282]
[1724660101266,17.70606668,160.32,160.25,20.0]
[1724660102073,16.1463,160.32,160.26,0.92664593]
[1724660103377,1.5597,160.31,160.25,26.17888282]
[1724660104079,16.1463,160.32,160.25,26.17888282]
[1724660104284,16.1463,160.32,160.26,0.92641386]
[1724660104882,15.7899,160.36,160.27,0.9259497]
[1724660105185,15.7899,160.36,160.28,26.17888282]
[1724660105361,15.7899,160.36,160.29,71.17888282]
[1724660106262,15.7899,160.36,160.29,65.0]
[1724660107985,1.55912572,160.35,160.29,65.0]
[1724660112075,1.55912572,160.35,160.29,20.0]
[1724660112276,1.55912572,160.35,160.27,22.7256792]
[1724660112490,1.55912572,160.35,160.27,20.0]
[1724660112978,1.55912572,160.35,160.26,20.0]
[1724660113186,1.55912572,160.35,160.24,20.0]
[1724660113562,1.55912572,160.35,160.25,6.06338871]
[1724660113875,1.55912572,160.35,160.26,20.0]
[1724660114068,1.55912572,160.35,160.26,26.06338871]
[1724660116192,1.55912572,160.35,160.26,20.0]
[1724660116386,1.55912572,160.35,160.26,26.06357245]
[1724660116586,1.55912572,160.35,160.26,20.0]
[1724660116789,1.55912572,160.35,160.25,29.99413355]
[1724660116977,1.55912572,160.35,160.26,51.06357245]
[1724660117175,1.55912572,160.35,160.27,20.0]
[1724660117376,15.7899,160.36,160.27,26.98949022]
[1724660117580,15.7899,160.36,160.27,30.91972548]
[1724660117771,15.7899,160.36,160.27,24.85645951]
[1724660118802,15.7899,160.36,160.27,24.85649182]
[1724660119378,15.7899,160.36,160.28,51.06216137]
[1724660119678,15.7899,160.36,160.29,20.92576248]
[1724660119986,15.7899,160.36,160.3,0.92576248]
[1724660120198,15.7899,160.36,160.29,20.0]
[1724660120387,15.7899,160.36,160.29,26.06080014]
[1724660120702,15.7899,160.36,160.3,45.0]
[1724660120886,15.7899,160.36,160.3,45.92534904]
[1724660122677,15.7899,160.36,160.3,45.0]
[1724660123689,15.7899,160.36,160.31,20.0]
[1724660126091,1.55911258,160.38,160.31,20.0]
[1724660126302,1.55917737,160.39,160.31,20.0]
[1724660126893,1.55917737,160.39,160.3,20.0]
[1724660127094,396.6344,160.4,160.3,20.92540245]
[1724660128609,396.6344,160.4,160.3,20.0]
[1724660128788,6.2355,160.38,160.28,26.05532025]
[1724660128988,15.072,160.36,160.28,20.0]
[1724660129317,1.55939033,160.35,160.27,22.7686111]
[1724660129488,1.55939033,160.35,160.28,45.0]
[1724660129687,1.55939033,160.35,160.29,20.0]
[1724660133316,16.63138995,160.36,160.29,20.0]
[1724660134009,1.55938986,160.35,160.29,20.0]
[1724660134209,1.55938986,160.35,160.26,26.05746785]
[1724660134386,1.55938986,160.35,160.27,3.50520497]
[1724660134986,1.55938986,160.35,160.24,2.74129688]
[1724660135189,391.85938986,160.35,160.25,2.44615642]
[1724660135421,6.2389,160.29,160.21,7.90870912]
[1724660135727,1.56003379,160.28,160.19,6.1962]
[1724660135890,7.79792331,160.31,160.19,6.1962]
[1724660136603,1.56002331,160.31,160.19,6.1962]
[1724660136794,1.56002331,160.31,160.2,65.0]
[1724660137820,12.2576,160.32,160.2,65.0]
[1724660137996,6.02,160.32,160.23,20.0]
[1724660138205,406.4909,160.33,160.24,67.48751306]
[1724660138520,406.4909,160.33,160.24,65.9261947]
[1724660139090,406.4909,160.33,160.24,65.0]
[1724660139315,406.4909,160.33,160.25,7.90677801]
[1724660139509,406.4909,160.33,160.26,65.0]
[1724660139727,16.1909,160.33,160.26,65.0]
[1724660141119,6.2775,160.36,160.27,20.9260211]
[1724660141318,6.2775,160.36,160.28,65.0]
[1724660141615,390.4,160.4,160.29,0.92541774]
[1724660141821,390.4,160.4,160.3,0.92511006]
[1724660141822,0.1,160.4,160.3,0.92511006]
[1724660142121,1.65912727,160.4,160.28,65.0]
[1724660144126,0.1,160.4,160.29,20.92518229]
[1724660144328,0.1,160.4,160.31,9.5663939]
[1724660144624,0.1,160.4,160.32,0.92488167]
[1724660144821,0.1,160.4,160.32,65.92488167]
[1724660145119,0.1,160.4,160.33,0.92488149]
[1724660146213,0.1,160.4,160.32,65.0]
[1724660146603,1.65902884,160.4,160.32,65.0]
[1724660147827,1.65902884,160.4,160.32,20.0]
[1724660148908,9.5663939,160.39,160.32,20.0]
[1724660149221,1.55911186,160.38,160.32,20.0]
[1724660150708,1.55911186,160.38,160.3,20.0]
[1724660152324,15.8011939,160.39,160.31,0.92550844]
[1724660152701,9.5663939,160.39,160.31,0.92550844]
[1724660153206,1.55922218,160.38,160.3,20.0]
[1724660153403,9.5663939,160.37,160.3,20.0]
[1724660153605,1.55937521,160.36,160.27,9.5663939]
[1724660153807,1.55936652,160.35,160.28,45.0]
[1724660154740,1.55936019,160.36,160.28,45.0]
[1724660155230,1.55936019,160.36,160.29,20.0]
[1724660158048,1.55935576,160.35,160.29,20.0]
[1724660158828,1.55937955,160.36,160.29,20.0]
[1724660159133,1.55937984,160.35,160.29,20.0]
[1724660160042,1.5593804,160.36,160.29,20.0]
[1724660160224,1.55937925,160.35,160.29,20.0]
[1724660161249,17.36237315,160.35,160.25,9.5663939]
[1724660161412,9.5663939,160.33,160.23,27.53230572]
[1724660161739,1.55981746,160.32,160.23,24.7637939]
[1724660161926,9.5663939,160.31,160.23,9.5663939]
[1724660162112,1.55992844,160.3,160.23,9.5663939]
[1724660162532,1.55992543,160.29,160.19,47.88405406]
[1724660162813,1.55992543,160.29,160.21,9.5663939]
[1724660163808,1.55992543,160.29,160.22,45.0]
[1724660164819,1.55992543,160.29,160.23,20.0]
[1724660167842,21.7839,160.3,160.23,0.92727589]
[1724660168013,1.56002983,160.29,160.22,20.0]
[1724660168209,21.7839,160.3,160.22,20.0]
[1724660169026,21.7839,160.3,160.21,9.5663939]
[1724660169246,21.7839,160.3,160.22,20.0]
[1724660169836,21.7839,160.3,160.21,9.5663939]
[1724660170142,21.7839,160.3,160.22,20.92732851]
[1724660173920,21.7839,160.3,160.23,0.92732545]
[1724660174123,21.7839,160.3,160.21,0.9273252]
[1724660174429,21.7839,160.3,160.21,45.9273252]
[1724660174628,21.7839,160.3,160.22,20.0]
[1724660174836,21.7839,160.3,160.23,0.92732518]
[1724660175839,21.7839,160.3,160.22,20.0]
[1724660176037,9.5663939,160.29,160.22,20.0]
[1724660176350,9.5663939,160.29,160.23,0.92732431]
[1724660176845,9.5663939,160.27,160.22,20.0]
[1724660177047,9.5663939,160.27,160.17,20.0]
[1724660177048,1.56023673,160.26,160.17,29.5663939]
[1724660177265,9.5663939,160.25,160.15,15.7451]
[1724660177547,1.56041022,160.24,160.15,15.7451]
[1724660178127,1.56041022,160.24,160.15,35.7451]
[1724660178445,24.9293939,160.24,160.15,15.7451]
[1724660178652,1.56041776,160.23,160.15,25.3114939]
[1724660178840,1.56041776,160.23,160.16,20.0]
[1724660179764,1.56041776,160.23,160.14,12.35758447]
[1724660181146,1.56041776,160.23,160.15,20.0]
[1724660183238,31.3496939,160.24,160.16,0.92884323]
[1724660184433,1.56071751,160.23,160.15,20.0]
[1724660184659,9.5663939,160.22,160.15,20.0]
[1724660184830,9.5663939,160.2,160.12,20.0]
[1724660185029,1.56099342,160.19,160.12,20.0]
[1724660185449,15.9101,160.18,160.12,20.0]
[1724660185655,1.56100092,160.17,160.09,9.5663939]
[1724660185873,17.47110092,160.18,160.09,29.5663939]
[1724660186047,15.9101,160.18,160.11,9.5663939]
[1724660186235,15.9101,160.18,160.12,20.92958378]
[1724660186843,1.56088967,160.17,160.12,20.0]
[1724660187250,15.9101,160.18,160.12,20.0]
[1724660187634,1.56101406,160.17,160.12,20.0]
[1724660187857,15.9101,160.18,160.12,20.0]
[1724660189150,1.56102093,160.17,160.09,2.73225249]
[1724660189355,1.56102093,160.17,160.08,9.5663939]
[1724660190153,32.0180939,160.18,160.08,9.5663939]
[1724660190654,22.4517,160.18,160.1,9.5663939]
[1724660190856,22.4517,160.18,160.11,20.0]
[1724660191254,22.4517,160.18,160.11,20.92993326]
[1724660192767,22.4517,160.18,160.11,20.0]
[1724660194071,22.4517,160.18,160.12,0.92986759]
[1724660194581,22.4517,160.18,160.11,20.0]
[1724660195277,1.56112177,160.17,160.11,20.0]
[1724660195662,1.56112177,160.17,160.1,20.0]
[1724660196184,1.56112177,160.17,160.09,20.0]
[1724660196374,1.56112177,160.17,160.08,20.0]
[1724660197683,32.0180939,160.18,160.09,10.49673991]
[1724660197975,32.0180939,160.18,160.11,9.5663939]
[1724660197976,22.4517,160.18,160.11,9.5663939]
[1724660198175,22.4517,160.18,160.13,9.5663939]
[1724660198473,390.3,160.21,160.17,9.5663939]
[1724660199770,390.3,160.21,160.12,26.2345]
[1724660199985,390.3,160.21,160.15,9.5663939]
[1724660200150,6.29,160.22,160.17,9.5663939]
[1724660200350,7.85053832,160.22,160.17,9.5663939]
[1724660200769,7.85053832,160.22,160.16,20.0]
[1724660201556,6.29,160.22,160.16,20.0]
[1724660201755,15.1627,160.23,160.17,54.5663939]
[1724660201982,1.56042131,160.22,160.16,20.0]
[1724660202456,16.72333318,160.23,160.16,20.0]
[1724660202653,15.1627,160.23,160.17,9.5663939]
[1724660202879,15.1627,160.23,160.17,54.5663939]
[1724660203286,15.1627,160.23,160.16,20.0]
[1724660203597,15.1627,160.23,160.17,9.5663939]
[1724660204662,1.56053683,160.22,160.17,9.5663939]
[1724660205360,15.1627,160.23,160.17,9.5663939]
[1724660205673,1.56056787,160.22,160.17,9.5663939]
[1724660205863,1.56056787,160.22,160.15,1.56214799]
[1724660206065,1.56056787,160.22,160.15,2.81186889]
[1724660206569,1.56056787,160.22,160.15,20.0]
[1724660206979,1.56056787,160.22,160.16,9.5663939]
[1724660207181,1.56056787,160.22,160.17,20.0]
[1724660208169,15.1627,160.23,160.17,20.0]
[1724660208697,16.72328714,160.23,160.17,20.0]
[1724660208988,15.1627,160.23,160.17,20.0]
[1724660211568,15.1627,160.23,160.18,10.49471002]
[1724660211768,15.1627,160.23,160.2,9.5663939]
[1724660214574,15.1627,160.23,160.2,10.49441726]
[1724660214892,6.0739,160.26,160.2,10.49441726]
[1724660215391,7.63422414,160.26,160.2,9.5663939]
[1724660215779,7.63422414,160.26,160.2,11.12831834]
[1724660217581,7.63422414,160.26,160.2,9.5663939]
[1724660218293,7.63422414,160.26,160.2,12.37787231]
[1724660218868,7.63422414,160.26,160.2,9.5663939]
[1724660219073,7.63422414,160.26,160.2,11.12832629]
[1724660219987,1.56032414,160.26,160.2,11.12832629]
[1724660220189,1.56032414,160.26,160.2,9.5663939]
[1724660220591,1.56032414,160.26,160.19,20.0]
[1724660220787,7.80032414,160.26,160.17,9.5663939]
[1724660220985,6.2351,160.24,160.18,1.56209215]
[1724660221297,1.56071462,160.23,160.18,1.562188]
[1724660221483,1.56071462,160.23,160.17,1.562188]
[1724660221814,1.56071462,160.23,160.15,9.5663939]
[1724660221986,1.56071462,160.23,160.16,1.5622326]
[1724660222183,1.56071462,160.23,160.17,1.5622326]
[1724660222393,16.4632,160.22,160.16,23.51366435]
[1724660222686,16.4632,160.22,160.17,11.12863802]
[1724660222887,16.4632,160.22,160.18,1.56224412]
[1724660223102,16.4632,160.22,160.19,1.56224412]
[1724660223285,16.4632,160.22,160.17,10.49560737]
[1724660223590,16.4632,160.22,160.18,2.49076744]
[1724660223785,16.4632,160.22,160.19,1.56208533]
[1724660223993,406.087,160.26,160.18,0.92868211]
[1724660224188,406.087,160.26,160.19,11.12846678]
[1724660224406,406.087,160.26,160.2,1.56207288]
[1724660224620,406.087,160.26,160.2,0.92800131]
[1724660224782,406.2096,160.3,160.23,9.5663939]
[1724660225098,1.56010486,160.29,160.23,9.5663939]
[1724660226193,11.12649876,160.29,160.18,6.202]
[1724660226415,11.12649876,160.29,160.19,31.1283157]
[1724660226586,11.12649876,160.29,160.2,1.5619218]
[1724660226786,11.12649876,160.29,160.21,1.5619218]
[1724660227000,11.12649876,160.29,160.2,1.5619218]
[1724660227194,11.12649876,160.29,160.21,1.5619218]
[1724660227385,11.12649876,160.29,160.2,1.5619218]
[1724660227591,11.12649876,160.29,160.21,1.5619218]
[1724660227799,11.12649876,160.29,160.2,1.5619218]
[1724660227992,11.12649876,160.29,160.21,1.5619218]
[1724660228198,1.56010486,160.29,160.21,9.5663939]
[1724660228394,1.56010486,160.29,160.22,20.0]
[1724660230294,15.9096,160.3,160.22,20.0]
[1724660230295,15.9096,160.3,160.22,20.92744595]
[1724660230813,15.9096,160.3,160.23,9.5663939]
[1724660231897,17.16628519,160.3,160.23,9.5663939]
[1724660232691,15.9096,160.3,160.24,0.9270971]
[1724660233003,6.5991,160.32,160.25,9.5663939]
[1724660233194,16.6421,160.34,160.27,9.5663939]
[1724660238023,18.2017715,160.34,160.27,9.5663939]
[1724660238233,16.6421,160.34,160.29,9.5663939]
[1724660238394,16.6421,160.34,160.24,38.2655756]
[1724660238729,16.6421,160.34,160.27,9.5663939]
[1724660238890,16.6421,160.34,160.28,20.0]
[1724660239097,16.6421,160.34,160.29,0.92596018]
[1724660239721,16.6421,160.34,160.28,20.0]
[1724660239929,16.6421,160.34,160.29,9.5663939]
[1724660240491,6.2958,160.36,160.29,9.5663939]
[1724660240492,6.2958,160.36,160.3,0.92576306]
[1724660240695,16.3102,160.38,160.31,9.5663939]
[1724660241396,1.5593034,160.37,160.31,9.5663939]
[1724660242095,17.86937943,160.38,160.31,9.5663939]
[1724660242355,0.1,160.4,160.33,9.5663939]
[1724660242637,0.1,160.4,160.34,0.92459091]
[1724660242933,0.1,160.4,160.34,0.92469854]
[1724660243300,0.1,160.4,160.34,45.0]
[1724660245602,0.1,160.4,160.35,9.5663939]
[1724660245808,0.1,160.4,160.39,29.5663939]
[1724660246026,0.8130377,160.47,160.42,9.5663939]
[1724660246241,0.8130377,160.47,160.43,45.92223948]
[1724660246546,0.8130377,160.47,160.45,9.5663939]
[1724660246718,0.8130377,160.47,160.46,85.92118074]
[1724660246918,15.7245,160.59,160.46,85.92118074]
[1724660247115,15.7245,160.59,160.5,9.5663939]
[1724660247316,1.55726146,160.6,160.51,65.0]
[1724660247528,1.55726146,160.6,160.51,20.0]
[1724660247741,9.5663939,160.59,160.51,20.0]
[1724660248049,1.5572526,160.58,160.48,20.0]
[1724660248232,7.0213377,160.63,160.48,20.0]
[1724660248233,1.55725094,160.57,160.48,20.0]
[1724660248416,1.55725094,160.57,160.46,20.0]